[Event "ESTCC 65 2019"]
[Site "Mali Losinj"]
[Date "2019.09.20"]
[Round "3.29"]
[White "Vadlja, Stjepan"]
[Black "Karppinen, Martti"]
[Result "1/2-1/2"]
[ECO "D10"]
[WhiteElo "1636"]
[BlackElo "1925"]
[Annotator "NA"]
[PlyCount "176"]
[EventDate "2019.09.18"]
[EventType "team-tourn"]
[EventCountry "CRO"]
[SourceTitle "playchess.com"]
[Source "ChessBase"]
[SourceQuality "1"]
[WhiteTeam "Croatia"]
[BlackTeam "Finland"]
[WhiteTeamCountry "CRO"]
[BlackTeamCountry "FIN"]
[TimeControl "40/5400+30:1800+30"]

1. d4 {[%emt 0:00:30]} d5 {[%emt 0:00:30]} 2. c4 {[%emt 0:00:30]} c6 {[%emt 0:00:30]} 3. e3 {[%emt 0:01:30]} Nf6 {[%emt 0:00:30]} 4. Nc3 {[%emt 0:00:30]} g6 {[%emt 0:02:30]} 5. b3 {[%emt 0:00:30]} Bg7 {[%emt 0:00:30]} 6. Bb2 {[%emt 0:00:30]} O-O {[%emt 0:02:30]} 7. Be2 {[%emt 0:00:00]} Qa5 {[%emt 0:02:30]} 8. Qd2 {[%emt 0:02:00]} Rd8 {[%emt 0:01:30]} 9. Nf3 {[%emt 0:00:30]} Bf5 {[%emt 0:04:30]} 10. O-O {[%emt 0:00:30]} Qc7 {[%emt 0:03:30]} 11. Rac1 {[%emt 0:00:30]} Ne4 {[%emt 0:03:30]} 12. Qe1 {[%emt 0:00:30]} Nxc3 {[%emt 0:05:30]} 13. Qxc3 {[%emt 0:01:30]} Be4 {[%emt 0:07:30]} 14. Nd2 {[%emt 0:01:30]} Qd6 {[%emt 0:06:30]} 15. f3 {[%emt 0:01:30]} Bf5 {[%emt 0:00:30]} 16. cxd5 {[%emt 0:00:30]} cxd5 {[%emt 0:01:30]} 17. Qc7 {[%emt 0:00:30]} Qd7 {[%emt 0:12:30]} 18. Qxd7 {[%emt 0:00:00]} Nxd7 {[%emt 0:02:30]} 19. Rc7 {[%emt 0:01:00]} Rdc8 {[%emt 0:01:30]} 20. Rfc1 {[%emt 0:00:00]} Rxc7 {[%emt 0:10:30]} 21. Rxc7 {[%emt 0:00:00]} Bh6 {[%emt 0:01:30]} 22. Kf2 {[%emt 0:04:30]} a6 {[%emt 0:00:30]} 23. g4 {[%emt 0:00:00]} Be6 {[%emt 0:00:30]} 24. h4 {[%emt 0:00:00]} f6 {[%emt 0:04:30]} 25. Rxb7 {[%emt 0:00:30]} Rc8 {[%emt 0:02:30]} 26. Bd3 {[%emt 0:09:30]} Rb8 {[%emt 0:01:30]} 27. Bxa6 {[%emt 0:00:30]} Rxb7 {[%emt 0:11:40]} 28. Bxb7 {[%emt 0:00:00]} Bf7 {[%emt 0:01:02]} 29. a4 {[%emt 0:00:00]} e6 {[%emt 0:01:55]} 30. a5 {[%emt 0:00:30]} Bf8 {[%emt 0:00:29]} 31. a6 {[%emt 0:00:00]} Bb4 {[%emt 0:03:00]} 32. Ke2 {[%emt 0:00:00]} Be8 {[%emt 0:01:29]} 33. a7 {[%emt 0:00:00]} Nb6 {[%emt 0:00:13]} 34. a8=Q {[%emt 0:05:00]} Nxa8 {[%emt 0:00:30]} 35. Bxa8 {[%emt 0:00:00]} Bb5+ {[%emt 0:00:21]} 36. Ke1 {[%emt 0:03:00]} h5 {[%emt 0:00:30]} 37. e4 {[%emt 0:00:30]} hxg4 {[%emt 0:01:17]} 38. fxg4 {[%emt 0:00:30]} dxe4 {[%emt 0:01:19]} 39. Bxe4 {[%emt 0:01:30]} Kf7 {[%emt 0:00:30]} 40. Bf3 {[%emt 0:00:30]} f5 {[%emt 0:02:31]} 41. d5 {[%emt 0:03:30]} fxg4 {[%emt 0:02:44]} 42. dxe6+ {[%emt 0:00:30]} Kxe6 {[%emt 0:00:00]} 43. Bxg4+ {[%emt 0:00:30]} Kf7 {[%emt 0:00:00]} 44. Be2 {[%emt 0:00:00]} Bc6 {[%emt 0:01:30]} 45. Bd4 {[%emt 0:10:00]} Bb7 {[%emt 0:02:30]} 46. Bc4+ {[%emt 0:00:30]} Kf8 {[%emt 0:01:30]} 47. Ke2 {[%emt 0:00:00]} Bc8 {[%emt 0:01:30]} 48. Bf6 {[%emt 0:00:00]} Bg4+ {[%emt 0:00:30]} 49. Nf3 {[%emt 0:00:30]} Ba5 {[%emt 0:01:30]} 50. Bg5 {[%emt 0:00:30]} Kg7 {[%emt 0:00:30]} 51. Kf2 {[%emt 0:00:30]} Bc7 {[%emt 0:00:30]} 52. Kg2 {[%emt 0:00:30]} Bd6 {[%emt 0:03:30]} 53. Nd4 {[%emt 0:00:00]} Bc8 {[%emt 0:01:30]} 54. Bd5 {[%emt 0:00:00]} Bb4 {[%emt 0:00:43]} 55. Kf3 {[%emt 0:00:30]} Bc3 {[%emt 0:00:39]} 56. Ke3 {[%emt 0:00:30]} Bh3 {[%emt 0:02:07]} 57. Kd3 {[%emt 0:00:30]} Be1 {[%emt 0:00:48]} 58. Ke2 {[%emt 0:00:30]} Bc3 {[%emt 0:01:04]} 59. Ke3 {[%emt 0:00:30]} Kh7 {[%emt 0:01:23]} 60. Ne6 {[%emt 0:01:30]} Bb4 {[%emt 0:00:39]} 61. Kd4 {[%emt 0:00:30]} Bf1 {[%emt 0:01:24]} 62. Bc4 {[%emt 0:00:30]} Bh3 {[%emt 0:00:56]} 63. Nf4 {[%emt 0:00:30]} Bf5 {[%emt 0:03:38]} 64. Be6 {[%emt 0:00:00]} Bc2 {[%emt 0:01:35]} 65. Kc4 {[%emt 0:00:00]} Bd6 {[%emt 0:00:59]} 66. Kc3 {[%emt 0:00:30]} Bb1 {[%emt 0:01:06]} 67. Bc4 {[%emt 0:00:00]} Be5+ {[%emt 0:00:23]} 68. Kb4 {[%emt 0:00:00]} Bd6+ {[%emt 0:00:28]} 69. Kb5 {[%emt 0:00:30]} Bf5 {[%emt 0:01:09]} 70. Kc6 {[%emt 0:00:00]} Bb4 {[%emt 0:00:36]} 71. Bd5 {[%emt 0:00:00]} Bc2 {[%emt 0:00:37]} 72. Ne6 {[%emt 0:00:30]} Bd3 {[%emt 0:01:38]} 73. Nf4 {[%emt 0:01:30]} Bc2 {[%emt 0:00:14]} 74. Kd7 {[%emt 0:00:00]} Bf5+ {[%emt 0:00:52]} 75. Ke8 {[%emt 0:00:00]} Kg7 {[%emt 0:01:02]} 76. Ne6+ {[%emt 0:01:30]} Kh7 {[%emt 0:01:26]} 77. Kf7 {[%emt 0:00:30]} Bc3 {[%emt 0:03:30]} 78. Nf8+ {[%emt 0:00:00]} Kh8 {[%emt 0:00:12]} 79. Bf6+ {[%emt 0:00:00]} Bxf6 {[%emt 0:00:41]} 80. Kxf6 {[%emt 0:00:00]} Bc2 {[%emt 0:00:28]} 81. Nxg6+ {[%emt 0:00:00]} Bxg6 {[%emt 0:00:43]} 82. b4 {[%emt 0:00:30]} Be8 {[%emt 0:00:40]} 83. Bc4 {[%emt 0:00:30]} Ba4 {[%emt 0:01:35]} 84. b5 {[%emt 0:00:30]} Bxb5 {[%emt 0:00:11]} 85. Bxb5 {[%emt 0:00:00]} Kh7 {[%emt 0:00:11]} 86. Be8 {[%emt 0:00:00]} Kh8 {[%emt 0:00:02]} 87. Kg6 {[%emt 0:02:30]} Kg8 {[%emt 0:00:30]} 88. Kf6 {[%emt 0:00:30]} Kh8 {[%emt 0:00:30]} 1/2-1/2

[Event "ESTCC 65 2019"]
[Site "Mali Losinj"]
[Date "2019.09.20"]
[Round "3.31"]
[White "Novak, Stjepan"]
[Black "Virtanen, Esko"]
[Result "1-0"]
[ECO "B01"]
[WhiteElo "1503"]
[BlackElo "1771"]
[Annotator "NA"]
[PlyCount "121"]
[EventDate "2019.09.18"]
[EventType "team-tourn"]
[EventCountry "CRO"]
[SourceTitle "playchess.com"]
[Source "ChessBase"]
[SourceQuality "1"]
[WhiteTeam "Croatia"]
[BlackTeam "Finland"]
[WhiteTeamCountry "CRO"]
[BlackTeamCountry "FIN"]
[TimeControl "40/5400+30:1800+30"]

1. e4 {[%emt 0:00:30]} d5 {[%emt 0:00:30]} 2. Bd3 {[%emt 0:00:00]} d4 {[%emt 0:01:30]} 3. c3 {[%emt 0:00:00]} c5 {[%emt 0:01:30]} 4. Nf3 {[%emt 0:01:30]} Nc6 {[%emt 0:00:30]} 5. O-O {[%emt 0:01:30]} e5 {[%emt 0:00:00]} 6. Qb3 {[%emt 0:00:30]} Qc7 {[%emt 0:13:00]} 7. Bb5 {[%emt 0:01:30]} Bd6 {[%emt 0:02:30]} 8. d3 {[%emt 0:04:30]} h6 {[%emt 0:00:00]} 9. h3 {[%emt 0:01:30]} Nf6 {[%emt 0:00:00]} 10. Na3 {[%emt 0:00:30]} a6 {[%emt 0:00:30]} 11. Bxc6+ {[%emt 0:00:30]} Qxc6 {[%emt 0:00:30]} 12. cxd4 {[%emt 0:00:30]} cxd4 {[%emt 0:01:30]} 13. Nc4 {[%emt 0:00:30]} Qc7 {[%emt 0:03:30]} 14. Bd2 {[%emt 0:07:30]} b5 {[%emt 0:04:30]} 15. Nxd6+ {[%emt 0:01:30]} Qxd6 {[%emt 0:00:00]} 16. Bb4 {[%emt 0:00:30]} Qb8 {[%emt 0:01:00]} 17. Rfc1 {[%emt 0:06:30]} a5 {[%emt 0:04:30]} 18. Bc5 {[%emt 0:01:30]} Nd7 {[%emt 0:00:30]} 19. Qa3 {[%emt 0:04:30]} f6 {[%emt 0:01:30]} 20. Nh4 {[%emt 0:01:30]} Nxc5 {[%emt 0:04:30]} 21. Qxc5 {[%emt 0:01:30]} Kf7 {[%emt 0:00:30]} 22. Qc7+ {[%emt 0:01:30]} Kg8 {[%emt 0:02:30]} 23. Ng6 {[%emt 0:00:30]} Kh7 {[%emt 0:00:30]} 24. Nxh8 {[%emt 0:00:30]} Kxh8 {[%emt 0:00:30]} 25. Rc5 {[%emt 0:01:30]} Be6 {[%emt 0:00:00]} 26. Rac1 {[%emt 0:01:30]} Bxa2 {[%emt 0:00:00]} 27. Qxb8+ {[%emt 0:01:30]} Rxb8 {[%emt 0:00:30]} 28. Rc8+ {[%emt 0:00:30]} Rxc8 {[%emt 0:00:00]} 29. Rxc8+ {[%emt 0:00:30]} Kh7 {[%emt 0:00:00]} 30. Kf1 {[%emt 0:00:00]} b4 {[%emt 0:00:30]} 31. Ra8 {[%emt 0:00:00]} Bb3 {[%emt 0:02:30]} 32. Rxa5 {[%emt 0:00:30]} Bc2 {[%emt 0:00:00]} 33. Ke2 {[%emt 0:00:30]} b3 {[%emt 0:00:00]} 34. g3 {[%emt 0:00:00]} Kg6 {[%emt 0:00:30]} 35. Ra7 {[%emt 0:00:00]} h5 {[%emt 0:00:30]} 36. f4 {[%emt 0:01:30]} Kh6 {[%emt 0:00:30]} 37. Re7 {[%emt 0:00:30]} exf4 {[%emt 0:01:30]} 38. gxf4 {[%emt 0:00:30]} h4 {[%emt 0:00:30]} 39. Rd7 {[%emt 0:00:00]} g5 {[%emt 0:00:30]} 40. Rxd4 {[%emt 0:01:00]} gxf4 {[%emt 0:00:00]} 41. Rd5 {[%emt 0:30:30]} Kg6 {[%emt 0:30:00]} 42. Kf3 {[%emt 0:00:30]} f5 {[%emt 0:00:30]} 43. exf5+ {[%emt 0:02:30]} Kg5 {[%emt 0:00:30]} 44. f6+ {[%emt 0:00:30]} Kxf6 {[%emt 0:00:30]} 45. Kxf4 {[%emt 0:00:30]} Ke6 {[%emt 0:00:30]} 46. Rd8 {[%emt 0:00:30]} Ke7 {[%emt 0:00:30]} 47. Rd4 {[%emt 0:00:00]} Bd1 {[%emt 0:00:00]} 48. Kg5 {[%emt 0:01:00]} Ke6 {[%emt 0:00:00]} 49. Rxh4 {[%emt 0:00:30]} Kd5 {[%emt 0:00:30]} 50. Rf4 {[%emt 0:00:30]} Be2 {[%emt 0:00:30]} 51. d4 {[%emt 0:00:30]} Bd3 {[%emt 0:00:00]} 52. h4 {[%emt 0:00:30]} Be4 {[%emt 0:00:00]} 53. Rxe4 {[%emt 0:00:30]} Kxe4 {[%emt 0:00:00]} 54. d5 {[%emt 0:01:30]} Kxd5 {[%emt 0:00:00]} 55. h5 {[%emt 0:00:00]} Kd4 {[%emt 0:00:30]} 56. h6 {[%emt 0:00:00]} Kd3 {[%emt 0:00:00]} 57. h7 {[%emt 0:00:00]} Kc2 {[%emt 0:00:00]} 58. h8=Q {[%emt 0:00:00]} Kc1 {[%emt 0:00:30]} 59. Kf4 {[%emt 0:00:00]} Kc2 {[%emt 0:00:00]} 60. Qc3+ {[%emt 0:00:00]} Kb1 {[%emt 0:00:00]} 61. Qxb3 {[%emt 0:00:30]} 1-0

[Event "ESTCC 65 2019"]
[Site "Mali Losinj"]
[Date "2019.09.20"]
[Round "3.32"]
[White "Ristoja, Aulikki"]
[Black "Petanjek, Zvonko"]
[Result "1/2-1/2"]
[ECO "D02"]
[WhiteElo "1558"]
[BlackElo "1650"]
[Annotator "NA"]
[PlyCount "58"]
[EventDate "2019.09.18"]
[EventType "team-tourn"]
[EventCountry "CRO"]
[SourceTitle "playchess.com"]
[Source "ChessBase"]
[SourceQuality "1"]
[WhiteTeam "Finland"]
[BlackTeam "Croatia"]
[WhiteTeamCountry "FIN"]
[BlackTeamCountry "CRO"]
[TimeControl "40/5400+30:1800+30"]

1. d4 {[%emt 0:00:30]} d5 {[%emt 0:00:30]} 2. Bf4 {[%emt 0:00:00]} Bf5 {[%emt 0:00:30]} 3. e3 {[%emt 0:00:00]} e6 {[%emt 0:00:00]} 4. Nf3 {[%emt 0:01:30]} h6 {[%emt 0:00:00]} 5. h4 {[%emt 0:00:30]} Bd6 {[%emt 0:00:30]} 6. Bxd6 {[%emt 0:03:30]} Qxd6 {[%emt 0:00:30]} 7. Nbd2 {[%emt 0:01:30]} a6 {[%emt 0:00:30]} 8. c4 {[%emt 0:02:30]} c6 {[%emt 0:01:30]} 9. c5 {[%emt 0:00:30]} Qc7 {[%emt 0:00:30]} 10. b4 {[%emt 0:01:30]} Nd7 {[%emt 0:00:00]} 11. Nb3 {[%emt 0:01:30]} Ngf6 {[%emt 0:04:00]} 12. Bd3 {[%emt 0:03:30]} Bh7 {[%emt 0:00:30]} 13. Bxh7 {[%emt 0:02:30]} Nxh7 {[%emt 0:00:30]} 14. Qc2 {[%emt 0:04:30]} Nhf6 {[%emt 0:00:30]} 15. Nbd2 {[%emt 0:01:30]} O-O {[%emt 0:00:00]} 16. O-O {[%emt 0:01:30]} Kh8 {[%emt 0:02:00]} 17. a3 {[%emt 0:01:30]} Rfe8 {[%emt 0:00:30]} 18. e4 {[%emt 0:01:30]} dxe4 {[%emt 0:03:30]} 19. Nxe4 {[%emt 0:00:30]} Nxe4 {[%emt 0:00:30]} 20. Qxe4 {[%emt 0:00:30]} Nf6 {[%emt 0:00:30]} 21. Qe5 {[%emt 0:01:30]} Qd7 {[%emt 0:01:30]} 22. Rad1 {[%emt 0:02:30]} Rad8 {[%emt 0:01:30]} 23. Rfe1 {[%emt 0:03:30]} Kg8 {[%emt 0:00:30]} 24. Qg3 {[%emt 0:00:30]} Nh5 {[%emt 0:01:30]} 25. Qe5 {[%emt 0:01:30]} Nf6 {[%emt 0:00:30]} 26. Qg3 {[%emt 0:00:30]} Nh5 {[%emt 0:00:30]} 27. Qe5 {[%emt 0:00:30]} Nf6 {[%emt 0:00:30]} 28. Qg3 {[%emt 0:00:30]} Nh5 {[%emt 0:00:30]} 29. Qe5 {[%emt 0:00:30]} Nf6 {[%emt 0:01:30]} 1/2-1/2

[Event "ESTCC 65 2019"]
[Site "Mali Losinj"]
[Date "2019.09.21"]
[Round "4.1"]
[White "Rantanen, Yrjo A."]
[Black "Balashov, Yuri S"]
[Result "1-0"]
[ECO "C97"]
[WhiteElo "2309"]
[BlackElo "2466"]
[Annotator "ChessBase"]
[PlyCount "141"]
[EventDate "2019.09.18"]
[EventType "team-tourn"]
[EventCountry "CRO"]
[SourceTitle "playchess.com"]
[Source "ChessBase"]
[SourceQuality "1"]
[WhiteTeam "Finland"]
[BlackTeam "Russia"]
[WhiteTeamCountry "FIN"]
[BlackTeamCountry "RUS"]
[TimeControl "40/5400+30:1800+30"]

1. e4 {[%emt 0:00:30]} e5 {[%emt 0:00:30]} 2. Nf3 {[%emt 0:00:00]} Nc6 {[%emt 0:00:00]} 3. Bb5 {[%emt 0:00:00]} a6 {[%emt 0:00:00]} 4. Ba4 {[%emt 0:00:30]} Nf6 {[%emt 0:00:00]} 5. O-O {[%emt 0:00:00]} Be7 {[%emt 0:00:00]} 6. Re1 {[%emt 0:00:00]} b5 {[%emt 0:00:30]} 7. Bb3 {[%emt 0:00:30]} O-O {[%emt 0:00:00]} 8. c3 {[%emt 0:00:00]} d6 {[%emt 0:00:00]} 9. h3 {[%emt 0:01:00]} Na5 {[%emt 0:02:30]} 10. Bc2 {[%emt 0:00:30]} c5 {[%emt 0:00:30]} 11. d4 {[%emt 0:01:30]} Qc7 {[%emt 0:00:30]} 12. d5 {[%emt 0:05:30]} c4 {[%emt 0:05:30]} 13. b4 {[%emt 0:03:30]} cxb3 {[%emt 0:05:30]} 14. axb3 {[%emt 0:00:30]} Nb7 {[%emt 0:02:30]} 15. b4 {[%emt 0:02:30]} Nd7 {[%emt 0:01:30]} 16. Bd2 {[%emt 0:03:30]} Nb6 {[%emt 0:00:30]} 17. Na3 {[%emt 0:02:30]} Nd8 {[%emt 0:05:30]} 18. Bd3 {[%emt 0:06:30]} Bb7 {[%emt 0:04:30]} 19. c4 {[%emt 0:07:30]} bxc4 {[%emt 0:07:30]} 20. Nxc4 {[%emt 0:13:30]} Nxc4 {[%emt 0:04:30]} 21. Rc1 {[%emt 0:00:30]} Qd7 {[%emt 0:08:30]} 22. Rxc4 {[%emt 0:02:30]} f5 {[%emt 0:01:30]} 23. Qc2 {[%emt 0:01:30]} Bf6 {[%emt 0:03:30]} 24. Rc7 {[%emt 0:04:30]} Qe8 {[%emt 0:00:30]} 25. Bc4 {[%emt 0:11:30]} Rf7 {[%emt 0:01:30]} 26. Rxf7 {[%emt 0:04:30]} Qxf7 {[%emt 0:02:30]} 27. Ng5 {[%emt 0:01:30]} Bxg5 {[%emt 0:02:30]} 28. Bxg5 {[%emt 0:00:00]} f4 {[%emt 0:02:30]} 29. Be2 {[%emt 0:01:00]} Rc8 {[%emt 0:06:30]} 30. Qa4 {[%emt 0:01:30]} h6 {[%emt 0:00:30]} 31. Bxd8 {[%emt 0:01:30]} Rxd8 {[%emt 0:00:00]} 32. Bg4 {[%emt 0:00:30]} Qc7 {[%emt 0:01:00]} 33. Qa5 {[%emt 0:01:30]} Qxa5 {[%emt 0:03:30]} 34. bxa5 {[%emt 0:00:30]} Bc8 {[%emt 0:00:00]} 35. Rc1 {[%emt 0:00:30]} Bd7 {[%emt 0:01:00]} 36. Rc6 {[%emt 0:00:30]} h5 {[%emt 0:02:30]} 37. Bxd7 {[%emt 0:01:30]} Rxd7 {[%emt 0:00:30]} 38. Rxa6 {[%emt 0:00:30]} Kf7 {[%emt 0:00:30]} 39. h4 {[%emt 0:03:35]} Ke7 {[%emt 0:00:00]} 40. Rb6 {[%emt 0:06:56]} Rc7 {[%emt 0:00:00]} 41. a6 {[%emt 0:31:42]} Kd7 {[%emt 0:30:30]} 42. Kh2 {[%emt 0:01:15]} g6 {[%emt 0:02:30]} 43. f3 {[%emt 0:01:41]} Ra7 {[%emt 0:00:30]} 44. g3 {[%emt 0:01:08]} Rc7 {[%emt 0:01:30]} 45. gxf4 {[%emt 0:01:51]} exf4 {[%emt 0:00:00]} 46. Kh3 {[%emt 0:07:20]} Rc3 {[%emt 0:01:00]} 47. Rb7+ {[%emt 0:01:06]} Kc8 {[%emt 0:00:00]} 48. Kg2 {[%emt 0:00:09]} Rc2+ {[%emt 0:01:00]} 49. Kf1 {[%emt 0:00:14]} Rc3 {[%emt 0:00:30]} 50. Ke2 {[%emt 0:00:20]} Re3+ {[%emt 0:00:30]} 51. Kf2 {[%emt 0:00:09]} Ra3 {[%emt 0:00:30]} 52. Rf7 {[%emt 0:00:07]} Rxa6 {[%emt 0:00:00]} 53. Rxf4 {[%emt 0:00:12]} Ra2+ {[%emt 0:00:00]} 54. Kg3 {[%emt 0:00:24]} Ra1 {[%emt 0:00:00]} 55. Rf7 {[%emt 0:00:00]} Kd8 {[%emt 0:00:00]} 56. Rg7 {[%emt 0:00:00]} Ke8 {[%emt 0:00:00]} 57. Kf4 {[%emt 0:00:00]} Rg1 {[%emt 0:00:00]} 58. Ke3 {[%emt 0:00:00]} Rg2 {[%emt 0:00:00]} 59. Kd3 {[%emt 0:00:00]} Kd8 {[%emt 0:00:00]} 60. f4 {[%emt 0:00:00]} Rg4 {[%emt 0:00:00]} 61. Ke3 {[%emt 0:00:00]} Rg3+ {[%emt 0:00:00]} 62. Kf2 {[%emt 0:00:00]} Rg4 {[%emt 0:00:00]} 63. Kf3 {[%emt 0:00:00]} Ke8 {[%emt 0:00:00]} 64. e5 {[%emt 0:00:00]} dxe5 {[%emt 0:00:00]} 65. fxe5 {[%emt 0:00:00]} Kf8 {[%emt 0:00:00]} 66. Rh7 {[%emt 0:01:00]} Rxh4 {[%emt 0:00:00]} 67. d6 {[%emt 0:00:56]} Rd4 {[%emt 0:00:00]} 68. Ke3 {[%emt 0:00:40]} Rd5 {[%emt 0:00:00]} 69. Ke4 {[%emt 0:03:57]} Rd1 {[%emt 0:00:00]} 70. d7 {[%emt 0:01:57]} h4 {[%emt 0:00:00]} 71. e6 {[%emt 0:00:23]} 1-0

[Event "ESTCC 65 2019"]
[Site "Mali Losinj"]
[Date "2019.09.21"]
[Round "4.3"]
[White "Kivimaki, Jaakko"]
[Black "Kalegin, Evgenij"]
[Result "1/2-1/2"]
[ECO "A48"]
[WhiteElo "2195"]
[BlackElo "2435"]
[Annotator "NA"]
[PlyCount "89"]
[EventDate "2019.09.18"]
[EventType "team-tourn"]
[EventCountry "CRO"]
[SourceTitle "playchess.com"]
[Source "ChessBase"]
[SourceQuality "1"]
[WhiteTeam "Finland"]
[BlackTeam "Russia"]
[WhiteTeamCountry "FIN"]
[BlackTeamCountry "RUS"]
[TimeControl "40/5400+30:1800+30"]

1. d4 {[%emt 0:00:30]} Nf6 {[%emt 0:00:30]} 2. Nf3 {[%emt 0:00:00]} g6 {[%emt 0:00:00]} 3. e3 {[%emt 0:00:00]} c5 {[%emt 0:03:00]} 4. c3 {[%emt 0:00:30]} b6 {[%emt 0:00:30]} 5. b4 {[%emt 0:00:30]} Bg7 {[%emt 0:00:30]} 6. a4 {[%emt 0:00:30]} O-O {[%emt 0:01:30]} 7. Be2 {[%emt 0:00:00]} d6 {[%emt 0:04:30]} 8. O-O {[%emt 0:00:00]} Bb7 {[%emt 0:01:30]} 9. a5 {[%emt 0:00:30]} bxa5 {[%emt 0:03:30]} 10. Rxa5 {[%emt 0:01:30]} Nc6 {[%emt 0:05:30]} 11. Ra4 {[%emt 0:00:30]} cxb4 {[%emt 0:01:30]} 12. cxb4 {[%emt 0:00:30]} a6 {[%emt 0:00:30]} 13. Nc3 {[%emt 0:03:30]} Qb6 {[%emt 0:07:30]} 14. Nd2 {[%emt 0:13:30]} Nxb4 {[%emt 0:14:30]} 15. Nc4 {[%emt 0:18:30]} Qc6 {[%emt 0:00:30]} 16. f3 {[%emt 0:03:30]} Nbd5 {[%emt 0:03:30]} 17. Nxd5 {[%emt 0:02:30]} Nxd5 {[%emt 0:00:30]} 18. Na5 {[%emt 0:03:30]} Qd7 {[%emt 0:07:30]} 19. Bd2 {[%emt 0:01:30]} Bc6 {[%emt 0:05:30]} 20. Nxc6 {[%emt 0:01:30]} Qxc6 {[%emt 0:00:30]} 21. Qa1 {[%emt 0:00:30]} e5 {[%emt 0:06:30]} 22. Rc1 {[%emt 0:02:30]} Qd7 {[%emt 0:02:30]} 23. Ra5 {[%emt 0:02:30]} exd4 {[%emt 0:02:30]} 24. exd4 {[%emt 0:00:30]} Ne7 {[%emt 0:01:30]} 25. Qa4 {[%emt 0:04:30]} Qxa4 {[%emt 0:02:30]} 26. Rxa4 {[%emt 0:00:30]} Nf5 {[%emt 0:01:30]} 27. d5 {[%emt 0:11:30]} Bd4+ {[%emt 0:01:30]} 28. Kf1 {[%emt 0:00:30]} Be3 {[%emt 0:00:30]} 29. Ke1 {[%emt 0:02:30]} Rfb8 {[%emt 0:04:11]} 30. Bxe3 {[%emt 0:12:54]} Nxe3 {[%emt 0:00:05]} 31. Kf2 {[%emt 0:00:03]} Nxd5 {[%emt 0:00:29]} 32. Rd4 {[%emt 0:02:02]} Nb4 {[%emt 0:01:07]} 33. Rxd6 {[%emt 0:00:21]} Rd8 {[%emt 0:03:00]} 34. Rxd8+ {[%emt 0:01:19]} Rxd8 {[%emt 0:00:02]} 35. Ra1 {[%emt 0:01:09]} Rd2 {[%emt 0:02:46]} 36. Ra5 {[%emt 0:02:39]} Nc6 {[%emt 0:02:03]} 37. Rxa6 {[%emt 0:00:40]} Nd4 {[%emt 0:00:07]} 38. Ra8+ {[%emt 0:00:11]} Kg7 {[%emt 0:00:09]} 39. Re8 {[%emt 0:00:00]} Kf6 {[%emt 0:01:56]} 40. Re4 {[%emt 0:01:22]} Ne6 {[%emt 0:02:04]} 41. Ke3 {[%emt 0:33:19]} Rb2 {[%emt 0:30:14]} 42. h4 {[%emt 0:01:36]} h6 {[%emt 0:01:08]} 43. g3 {[%emt 0:00:22]} g5 {[%emt 0:01:24]} 44. hxg5+ {[%emt 0:01:47]} hxg5 {[%emt 0:00:00]} 45. Bc4 {[%emt 0:00:00]} 1/2-1/2

[Event "ESTCC 65 2019"]
[Site "Mali Losinj"]
[Date "2019.09.21"]
[Round "4.4"]
[White "Zhelnin, Vladimir V"]
[Black "Vinke, Dietmar"]
[Result "1-0"]
[ECO "B12"]
[WhiteElo "2406"]
[BlackElo "2129"]
[Annotator "NA"]
[PlyCount "89"]
[EventDate "2019.09.18"]
[EventType "team-tourn"]
[EventCountry "CRO"]
[SourceTitle "playchess.com"]
[Source "ChessBase"]
[SourceQuality "1"]
[WhiteTeam "Russia"]
[BlackTeam "Finland"]
[WhiteTeamCountry "RUS"]
[BlackTeamCountry "FIN"]
[TimeControl "40/5400+30:1800+30"]

1. e4 {[%emt 0:00:30]} c6 {[%emt 0:00:30]} 2. d4 {[%emt 0:01:30]} d5 {[%emt 0:00:00]} 3. Nd2 {[%emt 0:01:30]} g6 {[%emt 0:02:00]} 4. Ngf3 {[%emt 0:01:30]} Bg7 {[%emt 0:00:30]} 5. c3 {[%emt 0:00:30]} Nh6 {[%emt 0:00:30]} 6. Bd3 {[%emt 0:02:30]} O-O {[%emt 0:00:30]} 7. O-O {[%emt 0:00:30]} f6 {[%emt 0:13:30]} 8. Re1 {[%emt 0:01:30]} Nf7 {[%emt 0:01:30]} 9. c4 {[%emt 0:06:30]} e6 {[%emt 0:01:30]} 10. h3 {[%emt 0:13:30]} b6 {[%emt 0:03:30]} 11. Rb1 {[%emt 0:08:30]} a5 {[%emt 0:04:30]} 12. a3 {[%emt 0:04:30]} Na6 {[%emt 0:11:30]} 13. Nf1 {[%emt 0:06:30]} Bb7 {[%emt 0:17:30]} 14. b4 {[%emt 0:12:30]} axb4 {[%emt 0:00:30]} 15. axb4 {[%emt 0:00:00]} Nc7 {[%emt 0:01:30]} 16. b5 {[%emt 0:00:00]} cxb5 {[%emt 0:00:30]} 17. cxd5 {[%emt 0:03:30]} exd5 {[%emt 0:00:30]} 18. e5 {[%emt 0:00:30]} Re8 {[%emt 0:01:30]} 19. Bb2 {[%emt 0:01:30]} f5 {[%emt 0:03:30]} 20. Qb3 {[%emt 0:03:30]} Bf8 {[%emt 0:04:30]} 21. Rbc1 {[%emt 0:05:30]} b4 {[%emt 0:01:30]} 22. Ne3 {[%emt 0:00:30]} Ra5 {[%emt 0:08:30]} 23. Nc2 {[%emt 0:08:21]} Qe7 {[%emt 0:07:27]} 24. Rb1 {[%emt 0:00:09]} Bc6 {[%emt 0:01:55]} 25. Bc1 {[%emt 0:01:32]} Bb5 {[%emt 0:03:35]} 26. Bd2 {[%emt 0:01:51]} Bxd3 {[%emt 0:01:46]} 27. Qxd3 {[%emt 0:00:03]} Qd7 {[%emt 0:02:44]} 28. Bxb4 {[%emt 0:01:40]} Bxb4 {[%emt 0:01:33]} 29. Rxb4 {[%emt 0:00:15]} b5 {[%emt 0:00:10]} 30. Ne3 {[%emt 0:02:31]} Nd8 {[%emt 0:00:43]} 31. Rc1 {[%emt 0:01:02]} Nde6 {[%emt 0:00:20]} 32. Rbb1 {[%emt 0:02:24]} Rea8 {[%emt 0:00:18]} 33. Qc3 {[%emt 0:01:21]} Kf7 {[%emt 0:01:58]} 34. Ng5+ {[%emt 0:01:19]} Ke8 {[%emt 0:00:15]} 35. Nxe6 {[%emt 0:01:39]} Nxe6 {[%emt 0:00:03]} 36. Nc2 {[%emt 0:01:48]} Ra4 {[%emt 0:01:04]} 37. Nb4 {[%emt 0:00:22]} Ra3 {[%emt 0:00:45]} 38. Qd2 {[%emt 0:00:36]} Rb8 {[%emt 0:01:47]} 39. Rc6 {[%emt 0:00:45]} Ra4 {[%emt 0:00:35]} 40. Rd6 {[%emt 0:00:24]} Qf7 {[%emt 0:00:27]} 41. Nxd5 {[%emt 0:02:28]} Rb7 {[%emt 0:12:05]} 42. Nf6+ {[%emt 0:11:30]} Ke7 {[%emt 0:00:30]} 43. d5 {[%emt 0:00:30]} Nf4 {[%emt 0:01:30]} 44. g3 {[%emt 0:05:57]} Rd4 {[%emt 0:00:30]} 45. Qe3 {[%emt 0:01:32]} 1-0